bitfinex-derivatives/quotes_BTCF0:USTF0_20250411
["timestamp","ask_amount","ask_price","bid_price","bid_amount"]
[1744382458418,0.4027929,81971.0,81967.0,0.0610294]
[1744382458603,0.4027929,81971.0,81968.0,0.1220571]
[1744382459007,0.28074,81971.0,81968.0,0.10024008]
[1744382459212,0.1220559,81969.0,81968.0,0.10024008]
[1744382459615,0.3906559,81969.0,81968.0,0.10024008]
[1744382460006,0.1220588,81967.0,81966.0,0.1830894]
[1744382460311,0.2686,81969.0,81968.0,0.1220573]
[1744382460501,0.41848346,81978.0,81968.0,0.3608]
[1744382460702,0.1355,81977.0,81976.0,0.1220454]
[1744382461012,0.41848346,81978.0,81977.0,0.1220439]
[1744382462109,0.00018298,81987.0,81986.0,0.1220305]
[1744382462317,0.14034447,81996.0,81995.0,0.1220171]
[1744382462507,0.27569947,82000.0,81999.0,0.1220112]
[1744382462825,5.401e-05,82019.0,82014.0,0.1219889]
[1744382463112,0.31251559,82035.0,82027.0,0.1219695]
[1744382463413,0.1219621,82032.0,82027.0,0.1219695]
[1744382463614,0.27779173,82028.0,82025.0,0.1219717]
[1744382463807,0.27779173,82028.0,82027.0,0.1219695]
[1744382464009,0.0609855,82026.0,82019.0,0.00018287]
[1744382464216,0.1327,82027.0,82026.0,0.121971]
[1744382464408,0.27779173,82028.0,82027.0,0.1219695]
[1744382464607,0.27775173,82028.0,82027.0,0.1219695]
[1744382464905,0.27779173,82028.0,82027.0,0.1219695]
[1744382465213,0.27779173,82028.0,82027.0,0.00912521]
[1744382465410,0.39976133,82028.0,82027.0,0.1219695]
[1744382465615,0.27779173,82028.0,82027.0,0.1219695]
[1744382465913,0.27779173,82028.0,82025.0,0.3608]
[1744382466103,0.121971,82026.0,82025.0,0.3608]
[1744382466510,0.136,82027.0,82026.0,0.121971]
[1744382466915,0.2579695,82027.0,82026.0,0.099971]
[1744382467217,0.00018287,82036.0,82035.0,0.1219577]
[1744382467412,7.291e-05,82039.0,82038.0,0.1219532]
[1744382467609,0.1219482,82043.0,82034.0,0.3608]
[1744382467809,0.1829221,82043.0,82042.0,0.1219432]
[1744382468113,0.0609715,82045.0,82034.0,0.4827574]
[1744382468313,0.0048,82048.0,82047.0,0.1219398]
[1744382468921,4e-05,82048.0,82047.0,0.1219398]
[1744382469112,0.00018287,82056.0,82051.0,0.1828977]
[1744382469311,0.00018287,82056.0,82055.0,0.1219279]
[1744382470218,0.12210927,82056.0,82055.0,0.1219279]
[1744382470720,0.12214927,82056.0,82055.0,0.1219279]
[1744382470916,0.1219354,82050.0,82049.0,0.3608]
[1744382471415,0.0609708,82046.0,82045.0,0.1829082]
[1744382471614,0.1219472,82043.0,82042.0,0.1219449]
[1744382472112,0.060972,82045.0,82041.0,0.3608]
[1744382472113,0.1219472,82042.0,82041.0,0.3608]
[1744382472919,0.0609723,82045.0,82041.0,0.3608]
[1744382473113,0.1219472,82043.0,82042.0,0.121946]
[1744382473509,0.1219502,82040.0,82039.0,0.00018287]
[1744382473711,0.0609707,82046.0,82045.0,0.1219428]
[1744382474019,0.0609656,82053.0,82048.0,0.1219383]
[1744382474212,0.1219457,82045.0,82044.0,0.1219389]
[1744382474410,0.1829187,82045.0,82039.0,0.48374287]
[1744382474619,0.1219487,82041.0,82040.0,0.1219466]
[1744382474923,0.0609735,82043.0,82039.0,0.36098287]
[1744382475110,0.1219502,82040.0,82039.0,0.36098287]
[1744382475316,0.1219502,82040.0,82039.0,0.00018287]
[1744382476919,0.1219502,82040.0,82039.0,0.12213457]
[1744382477107,0.1219502,82040.0,82039.0,0.00018287]
[1744382477924,0.2545502,82040.0,82039.0,0.00018287]
[1744382478526,0.1326,82040.0,82039.0,0.12213457]
[1744382478822,0.41848346,82041.0,82040.0,0.1219502]
[1744382479006,0.41848346,82041.0,82040.0,0.2628502]
[1744382479211,0.41852346,82041.0,82040.0,0.3983502]
[1744382479615,0.54043216,82041.0,82040.0,0.3983502]
[1744382479819,0.54047216,82041.0,82040.0,0.3983502]
[1744382480122,0.41852346,82041.0,82040.0,0.2764]
[1744382480520,4e-05,82041.0,82040.0,0.2764]
[1744382483322,4e-05,82041.0,82039.0,0.00018287]
[1744382483518,0.26834,82041.0,82039.0,0.00018287]
[1744382484116,0.41848346,82040.0,82011.0,0.131]
[1744382484317,0.41848346,82040.0,82011.0,0.2677]
[1744382484318,0.3608,82027.0,82011.0,0.2677]
[1744382484519,0.68678346,82026.0,82011.0,0.1367]
[1744382484726,0.3608,82019.0,82004.0,0.1333]
[1744382484915,0.41848346,82026.0,82012.0,0.3608]
[1744382485117,0.54808346,82026.0,82013.0,0.401]
[1744382485328,0.54808346,82026.0,82013.0,0.27]
[1744382485329,0.1387,82025.0,82013.0,0.27]
[1744382485719,0.1296,82024.0,82013.0,0.27]
[1744382486322,0.12964,82024.0,82013.0,0.27]
[1744382486626,0.1335,82023.0,82013.0,0.27]
[1744382487130,0.1325,82022.0,82013.0,0.27]
[1744382487627,0.3608,82026.0,82013.0,0.27]
[1744382487831,4e-05,82022.0,82020.0,0.3608]
[1744382488131,0.00018287,82027.0,82021.0,0.4023]
[1744382488328,4e-05,82022.0,82021.0,0.4023]
[1744382488522,0.00018287,82027.0,82021.0,0.4023]
[1744382488734,4e-05,82022.0,82021.0,0.4023]
[1744382489732,0.3608,82039.0,82021.0,0.6523]
[1744382489926,0.3608,82039.0,82030.0,0.3608]
[1744382490132,0.3608,82039.0,82031.0,0.2733]
[1744382490321,0.1325,82044.0,82031.0,0.2733]
[1744382490521,4e-05,82039.0,82038.0,0.3608]
[1744382490717,0.2697,82054.0,82038.0,0.3608]
[1744382491018,0.00018287,82047.0,82035.0,0.01292156]
[1744382491224,0.00018287,82047.0,82030.0,0.00018287]
[1744382491524,0.22537124,82040.0,82030.0,0.00018287]
[1744382491720,0.3608,82032.0,82030.0,0.00018287]
[1744382491927,0.2697,82031.0,82014.0,0.3608]
[1744382492119,0.1325,82031.0,82014.0,0.3608]
[1744382492327,0.1372,82030.0,82014.0,0.3608]
[1744382492836,0.1334,82029.0,82014.0,0.3608]
[1744382493031,0.1334,82029.0,82015.0,0.28951667]
[1744382493332,0.1378,82028.0,82015.0,0.28951667]
[1744382493726,0.1334,82027.0,82015.0,0.28951667]
[1744382494129,0.3608,82021.0,82015.0,0.28951667]
[1744382494321,0.3608,82019.0,82015.0,0.28951667]
[1744382494527,0.2712,82018.0,82015.0,0.28951667]
[1744382495132,0.41848346,82017.0,82013.0,0.00018287]
[1744382495327,0.54948346,82017.0,82003.0,0.4320911]
[1744382495626,0.3608,82006.0,82003.0,0.4320911]
[1744382495832,0.41848346,82005.0,81990.0,0.3608]
[1744382496031,0.22537124,82000.0,81990.0,0.3608]
[1744382496330,0.2656,81999.0,81990.0,0.3608]
[1744382496737,4e-05,82000.0,81990.0,0.3608]
[1744382497033,0.00018287,82003.0,81999.0,0.3608]
[1744382497235,0.00018287,82003.0,82001.0,0.3608]
[1744382497436,0.00018287,82003.0,82001.0,0.3388]
[1744382498330,0.00022287,82003.0,82001.0,0.3388]
[1744382498537,0.00018287,82003.0,82001.0,0.3388]
[1744382498730,0.00022287,82003.0,82001.0,0.3388]
[1744382499638,0.00018287,82003.0,82001.0,0.3388]
[1744382499829,0.00022287,82003.0,82001.0,0.3388]
[1744382500135,0.00022287,82003.0,82002.0,0.1220067]
[1744382500540,0.12198,82020.0,82019.0,0.0609901]
[1744382501331,0.1422,82021.0,82012.0,0.0609957]
[1744382501636,0.1422,82021.0,82011.0,0.12244]
[1744382501637,0.1219919,82012.0,82011.0,0.12262287]
[1744382502334,0.1219919,82012.0,82011.0,0.24461617]
[1744382502535,0.2599919,82012.0,82011.0,0.24461617]
[1744382502834,0.2599919,82012.0,82011.0,0.00018287]
[1744382503739,0.6207919,82012.0,82011.0,0.00018287]
[1744382503933,0.0609975,82010.0,82009.0,0.1219933]
[1744382504137,0.1219978,82008.0,82007.0,0.1829978]
[1744382504838,0.1219978,82008.0,82007.0,0.0609995]
[1744382505037,0.06099,82020.0,82016.0,0.1829728]
[1744382505342,0.2522873,82017.0,82016.0,0.0609922]
[1744382505536,0.2522873,82017.0,82016.0,0.4217922]
[1744382505738,0.3811273,82017.0,82016.0,0.4217922]
[1744382506138,0.1220273,82017.0,82016.0,0.4217922]
[1744382506539,0.1219873,82017.0,82016.0,0.4217922]
[1744382506831,0.0609871,82024.0,82020.0,0.12198]
[1744382507036,0.1829669,82023.0,82022.0,0.1219755]
[1744382507237,0.3200884,82023.0,82022.0,0.1219755]
[1744382507442,0.1912884,82023.0,82022.0,0.1219755]
[1744382508335,0.1913284,82023.0,82022.0,0.1219755]
[1744382508536,0.00018287,82028.0,82026.0,0.1219695]
[1744382508737,0.0609848,82027.0,82026.0,0.1219695]
[1744382508933,0.00018287,82028.0,82021.0,0.0609885]
[1744382509139,0.12198,82020.0,82019.0,0.00018287]
[1744382509648,0.48278,82020.0,82019.0,0.00018287]
[1744382510048,0.39158,82020.0,82019.0,0.00018287]
[1744382510639,0.39158,82020.0,82019.0,0.12216427]
[1744382510832,0.39162,82020.0,82019.0,0.00018287]
[1744382511037,0.12198,82020.0,82019.0,0.12216427]
[1744382511247,0.12202,82020.0,82019.0,0.12216427]
[1744382511636,0.12198,82020.0,82019.0,0.12216427]
[1744382511836,0.12202,82020.0,82019.0,0.12216427]
[1744382512036,4e-05,82020.0,82019.0,0.48296427]
[1744382512250,4e-05,82020.0,82019.0,0.61846427]
[1744382512753,0.1829674,82024.0,82023.0,0.060987]
[1744382512941,0.1829692,82022.0,82021.0,0.1219783]
[1744382513139,0.0609892,82022.0,82021.0,0.1219783]
[1744382513339,0.0609892,82022.0,82021.0,0.0999783]
[1744382513539,0.00018287,82028.0,82027.0,0.1219695]
[1744382513540,0.18313707,82028.0,82027.0,0.1219695]
[1744382513744,0.24412227,82028.0,82027.0,0.1219695]
[1744382514140,0.1219695,82027.0,82026.0,0.1283]
[1744382514337,0.2493695,82027.0,82026.0,0.1283]
[1744382514742,0.12198,82020.0,82019.0,0.00018287]
[1744382514943,0.48278,82020.0,82019.0,7e-08]
[1744382515141,0.73278,82020.0,82019.0,7e-08]
[1744382515543,0.86018,82020.0,82019.0,7e-08]
[1744382517044,0.87255794,82020.0,82019.0,7e-08]
[1744382518239,0.62255794,82020.0,82019.0,7e-08]
[1744382518445,0.87255794,82020.0,82019.0,7e-08]
[1744382518644,1.2910414,82020.0,82019.0,7e-08]
[1744382519041,1.0410414,82020.0,82019.0,7e-08]
[1744382520354,1.2910414,82020.0,82019.0,7e-08]
[1744382520550,0.1220023,82005.0,82004.0,0.16100407]
[1744382520752,0.1220023,82005.0,82004.0,0.1220023]
[1744382521050,0.1220142,81997.0,81996.0,0.1220151]
[1744382521450,0.1220157,81996.0,81995.0,0.1348]
[1744382521749,0.1220157,81996.0,81995.0,0.2568171]
[1744382521949,0.12218607,82005.0,82004.0,0.1220038]
[1744382522343,0.12222607,82005.0,82004.0,0.2568038]
[1744382522643,0.00018287,82005.0,82004.0,0.2568038]
[1744382522841,0.00022287,82005.0,82004.0,0.2568038]
[1744382523251,0.00022287,82005.0,82004.0,0.5068038]
[1744382523446,0.1219874,82016.0,82015.0,0.1829773]
[1744382523843,0.1219889,82014.0,82013.0,0.38649]
[1744382524050,0.1219889,82014.0,82013.0,0.2645]
[1744382524351,0.1220082,82001.0,81994.0,0.3608]
[1744382524656,0.1220082,82001.0,82000.0,0.1220097]
[1744382525156,0.0609999,82007.0,82006.0,0.182995]
[1744382525457,0.0609999,82007.0,82006.0,0.0609993]
[1744382525757,0.1220038,82005.0,82004.0,0.1220031]
[1744382525949,0.1220038,82005.0,82004.0,0.2496031]
[1744382526356,0.1220438,82005.0,82004.0,0.2496031]
[1744382526559,0.1220423,82005.0,82004.0,0.2496031]
[1744382526853,4e-05,82005.0,82004.0,0.2496031]
[1744382527049,0.1220023,82005.0,82004.0,0.2496031]
[1744382527249,0.1220423,82005.0,82004.0,0.2496031]
[1744382528057,0.1220423,82005.0,82004.0,0.3897031]
[1744382528358,0.1220423,82005.0,82004.0,0.3677031]
[1744382529872,0.1220423,82005.0,82004.0,0.2677]
[1744382530261,0.1220423,82005.0,82004.0,0.3897038]
[1744382530468,0.1220423,82005.0,82004.0,0.2677]
[1744382530667,0.2599423,82005.0,82004.0,0.2677]
[1744382530869,0.3927423,82005.0,82004.0,0.2677]
[1744382531267,0.63154,82005.0,82000.0,0.01241086]
[1744382531456,0.1220157,81996.0,81995.0,0.2739]
[1744382531772,0.00018287,82004.0,81997.0,0.0610071]
[1744382532063,0.17837252,82022.0,82016.0,0.1219859]
[1744382532267,0.26468361,82017.0,82016.0,0.1219859]
[1744382532470,0.14269801,82017.0,82016.0,0.1219859]
[1744382532661,0.26468241,82017.0,82016.0,0.1219859]
[1744382532856,0.14273801,82017.0,82016.0,0.1219859]
[1744382533065,0.14269801,82017.0,82016.0,0.3915859]
[1744382533767,0.26468241,82017.0,82016.0,0.3915859]
[1744382533964,0.26472241,82017.0,82016.0,0.2696]
[1744382534367,0.14273801,82017.0,82016.0,0.7523859]
[1744382534567,0.17837252,82022.0,82021.0,0.1219785]
[1744382535170,0.17837252,82022.0,82016.0,0.6913913]
[1744382535370,0.17837252,82022.0,82021.0,0.1219785]
[1744382535563,0.23935542,82030.0,82024.0,0.121974]
[1744382535763,0.12215537,82025.0,82024.0,0.121974]
[1744382535971,0.12215537,82025.0,82024.0,0.1141]
[1744382536363,0.0609903,82020.0,82016.0,0.482783]
[1744382536566,0.0609903,82020.0,82019.0,0.1342]
[1744382536870,0.1219889,82014.0,82003.0,0.0610021]
[1744382537067,0.1219889,82014.0,82010.0,0.1219946]
[1744382537368,0.1219889,82014.0,82001.0,0.3608]
[1744382537571,0.1219889,82014.0,81996.0,0.0610074]
[1744382537877,0.1219889,82014.0,82003.0,0.1220049]
[1744382538174,0.4827889,82014.0,81996.0,0.1342]
[1744382538376,0.4827889,82014.0,82001.0,0.0610037]
[1744382538667,0.4827889,82014.0,82007.0,0.121999]
[1744382538872,0.4827889,82014.0,82002.0,0.1423]
[1744382538873,0.4827889,82014.0,82006.0,0.1220007]
[1744382539175,0.4828289,82014.0,82007.0,0.2642989]
[1744382539675,0.4828289,82014.0,82007.0,0.1423]
[1744382540173,0.4828289,82014.0,82008.0,0.1924988]
[1744382540369,4e-05,82014.0,82013.0,0.12217327]
[1744382540573,0.1219889,82014.0,82013.0,0.12217327]
[1744382540774,0.1220289,82014.0,82013.0,0.25367327]
[1744382541775,0.1220289,82014.0,82013.0,0.38607327]
[1744382542166,0.1220289,82014.0,82013.0,0.38589682]
[1744382543475,4e-05,82014.0,82013.0,0.38589682]
[1744382543672,0.59685598,82023.0,82016.0,0.0609922]
[1744382543878,0.0609892,82021.0,82019.0,0.1829674]
[1744382544071,0.1829677,82021.0,82020.0,0.2711]
[1744382544274,0.1829677,82021.0,82020.0,0.39308]
[1744382544667,0.1829677,82021.0,82020.0,0.2711]
[1744382544873,0.1830077,82021.0,82020.0,0.2711]
[1744382545473,0.0610292,82021.0,82020.0,0.39308]
[1744382546481,0.0610292,82021.0,82020.0,0.2711]
[1744382546783,0.0610292,82021.0,82020.0,0.39308]
[1744382547482,0.0610292,82021.0,82020.0,0.2711]
[1744382547876,0.0610292,82021.0,82020.0,0.39308]
[1744382548182,0.0610292,82021.0,82020.0,0.2711]
[1744382548378,0.0610292,82021.0,82020.0,0.39308]
[1744382548585,0.0609892,82021.0,82020.0,0.39308]
[1744382548887,0.0610292,82021.0,82020.0,0.39308]
[1744382549080,4e-05,82021.0,82020.0,0.75388]
[1744382549682,0.00018287,82025.0,82024.0,0.121974]
[1744382550082,0.12215537,82025.0,82024.0,0.391374]
[1744382550881,0.12215537,82025.0,82024.0,0.40405561]
[1744382551386,0.12215537,82025.0,82024.0,0.38205561]
[1744382551986,0.00018287,82025.0,82024.0,0.38205561]
[1744382552287,5.401e-05,82031.0,82030.0,0.1219651]
[1744382552583,0.1219458,82043.0,82035.0,0.1219577]
[1744382552895,0.00013287,82044.0,82035.0,0.1219577]
[1744382553079,0.00013287,82044.0,82035.0,0.4033577]
[1744382553280,0.17837252,82036.0,82035.0,0.4033577]
[1744382553583,0.17841252,82036.0,82035.0,0.4033577]
[1744382553887,0.30036872,82036.0,82035.0,0.4033577]
[1744382554385,0.30036872,82036.0,82035.0,0.2814]
[1744382554583,0.30036872,82036.0,82032.0,0.3608]
[1744382554883,0.121971,82026.0,82025.0,0.14678482]
[1744382555095,0.1219844,82017.0,82016.0,0.12184]
[1744382555284,0.1219827,82019.0,82018.0,0.1829728]
[1744382555584,0.1352,82022.0,82021.0,0.1219785]
[1744382555791,0.257177,82022.0,82021.0,0.3941785]
[1744382556090,0.1219829,82018.0,82017.0,0.4827844]
[1744382556381,0.1219809,82020.0,82019.0,0.1829707]
[1744382557182,0.1219809,82020.0,82019.0,0.0609907]
[1744382557383,0.1219844,82017.0,82016.0,0.00895175]
[1744382557582,0.1219889,82014.0,82008.0,0.4826]
[1744382557781,0.3997864,82016.0,82013.0,0.0091183]
[1744382557975,0.1219864,82016.0,82015.0,0.1219874]
[1744382558382,0.06104511,82019.0,82018.0,0.1219829]
[1744382558581,0.0609911,82019.0,82018.0,0.3976829]
[1744382558889,0.0610311,82019.0,82018.0,0.3976829]
[1744382559190,0.0610311,82019.0,82018.0,0.3756829]
[1744382560289,0.3379311,82019.0,82018.0,0.2420829]
[1744382560990,0.3379311,82019.0,82016.0,0.1429]
[1744382560991,0.1219889,82014.0,82004.0,0.0610015]
[1744382561190,0.1219889,82014.0,82013.0,0.13092404]
[1744382562089,0.1219774,82022.0,82016.0,0.0609929]
[1744382562290,0.1219774,82022.0,82021.0,0.1219785]
[1744382562492,0.12211027,82022.0,82021.0,0.1219785]
[1744382562682,0.06122378,82025.0,82024.0,0.121974]
[1744382562683,0.00018287,82025.0,82024.0,0.121974]
[1744382562882,0.12220938,82025.0,82024.0,0.395774]
[1744382563083,0.12215537,82025.0,82024.0,0.395774]
[1744382563282,0.12219537,82025.0,82024.0,0.395774]
[1744382563491,0.1219785,82021.0,82020.0,0.2439585]
[1744382563882,0.1219844,82017.0,82016.0,0.3957855]
[1744382564082,0.1219844,82017.0,82016.0,0.141]
[1744382564287,0.1219844,82017.0,82016.0,0.2629859]
[1744382564487,0.1219844,82017.0,82016.0,0.3957859]
[1744382564688,0.4217874,82024.0,82023.0,0.1219755]
[1744382565090,0.5540874,82024.0,82023.0,0.1219755]
[1744382565285,0.6901874,82024.0,82023.0,0.13835524]
[1744382565486,0.1219814,82019.0,82018.0,0.1219821]
[1744382565794,0.1219889,82014.0,82013.0,6.42e-06]
[1744382566100,0.4827889,82014.0,82013.0,6.42e-06]
[1744382566487,0.7511889,82014.0,82013.0,6.42e-06]
[1744382566683,0.7512289,82014.0,82013.0,6.42e-06]
[1744382566886,0.1219993,82007.0,82006.0,0.11200682]
[1744382567086,0.1830049,82005.0,82004.0,0.1220029]
[1744382567289,0.0610019,82004.0,82002.0,0.1830086]
[1744382567485,0.3904052,82003.0,82002.0,0.0610029]
[1744382567687,0.2593052,82003.0,82002.0,0.0610029]
[1744382568192,0.47947976,82012.0,82005.0,0.0610007]
[1744382568491,5.401e-05,82011.0,82010.0,0.1219948]
[1744382568788,0.1219858,82017.0,82016.0,0.1219859]
[1744382569190,0.2587823,82019.0,82018.0,0.1219829]
[1744382569386,0.4017823,82019.0,82018.0,0.1219829]
[1744382569592,0.1829893,82012.0,82011.0,0.1219904]
[1744382570098,0.060996,82012.0,82011.0,0.3176863]
[1744382570287,0.060996,82012.0,82011.0,0.4604863]
[1744382570488,0.1368,82013.0,82012.0,0.1219919]
[1744382570701,0.1829851,82014.0,82013.0,0.1219904]
[1744382571191,0.1829851,82014.0,82013.0,0.3994904]
[1744382571393,0.1829851,82014.0,82013.0,0.1347]
[1744382571899,0.0609964,82012.0,82003.0,0.0610026]
[1744382572096,0.1219978,82008.0,82007.0,0.2553975]
[1744382572291,0.1219978,82008.0,82007.0,0.1334]
[1744382572493,0.4036978,82008.0,82007.0,0.1334]
[1744382573084,0.1219978,82008.0,82007.0,0.2553993]
[1744382573288,0.1220378,82008.0,82007.0,0.2692]
[1744382573689,0.1220038,82004.0,82003.0,0.1220044]
[1744382573889,0.1220038,82004.0,82003.0,0.3912044]
[1744382574391,4e-05,82008.0,82005.0,0.0610011]
[1744382574691,0.1219978,82008.0,82007.0,0.2439971]
[1744382574887,4e-05,82008.0,82005.0,0.1829997]
[1744382575099,0.2593993,82007.0,82006.0,0.2628008]
[1744382575293,0.2593993,82007.0,82006.0,0.4027008]
[1744382575693,0.2593993,82007.0,82006.0,0.3807008]
[1744382576698,4e-05,82008.0,82007.0,0.1219993]
[1744382576998,0.1070852,82013.0,82012.0,0.1219919]
[1744382577200,0.2290756,82013.0,82012.0,0.1219919]
[1744382577405,0.2290756,82013.0,82012.0,0.6226919]
[1744382577607,0.1219904,82013.0,82012.0,0.2618919]
[1744382578404,0.3924904,82013.0,82012.0,0.2618919]
[1744382578904,0.3924904,82013.0,82005.0,0.4218006]
[1744382578905,0.1220008,82006.0,82005.0,0.4828015]
[1744382579407,0.1220052,82003.0,82002.0,0.1416]
[1744382579803,0.2532052,82003.0,82002.0,0.1220067]
[1744382580105,0.1220157,81996.0,81995.0,0.3608]
[1744382580306,0.1220171,81995.0,81985.0,5.4e-05]
[1744382580609,0.3925171,81995.0,81984.0,0.13]
[1744382580802,0.3925171,81995.0,81989.0,4e-05]
[1744382581895,0.0610115,81992.0,81985.0,5.4e-05]
[1744382582095,0.122038,81981.0,81978.0,0.1220413]
[1744382582310,0.122038,81981.0,81977.0,5.4e-05]
[1744382582608,0.122038,81981.0,81978.0,0.1220422]
[1744382582914,0.122038,81981.0,81977.0,5.4e-05]
[1744382583109,0.396738,81981.0,81977.0,5.4e-05]
[1744382583609,1.06522146,81981.0,81977.0,5.4e-05]
[1744382583905,1.06522146,81981.0,81976.0,0.29166036]
[1744382583906,0.1220439,81977.0,81976.0,0.29166036]
[1744382584105,0.90132736,81977.0,81976.0,0.41370576]
[1744382584310,0.90132736,81977.0,81976.0,0.29166036]
[1744382584510,0.90132736,81977.0,81976.0,0.29170036]
[1744382584705,0.90136736,81977.0,81976.0,0.29170036]
[1744382585114,0.90136736,81977.0,81976.0,0.29166036]
[1744382585307,0.90136736,81977.0,81976.0,0.29170036]
[1744382585610,0.90136736,81977.0,81976.0,4e-05]
[1744382585914,0.1220588,81967.0,81966.0,7.29e-05]
[1744382586107,0.1220588,81967.0,81960.0,0.142]
[1744382586108,0.5438899,81967.0,81960.0,0.142]
[1744382586313,0.3909603,81966.0,81965.0,0.1220618]
[1744382586504,0.2689,81966.0,81957.0,0.1296]
[1744382586804,0.1830815,81972.0,81971.0,0.1220484]
[1744382587403,0.1831215,81972.0,81971.0,0.1220484]
[1744382588003,0.061066,81972.0,81971.0,0.1220484]
[1744382588312,0.1220914,81972.0,81971.0,0.1000484]
[1744382588507,0.1220514,81972.0,81971.0,0.1000484]
[1744382588706,0.0610198,81980.0,81979.0,0.1220395]
[1744382589304,0.0610598,81980.0,81979.0,0.1220395]
[1744382590710,4e-05,81980.0,81979.0,0.1220395]
[1744382591016,0.10703847,81982.0,81981.0,0.122038]
[1744382592308,0.10703847,81982.0,81981.0,0.372038]
[1744382592309,0.10707847,81982.0,81981.0,0.372038]
[1744382592510,0.10703847,81982.0,81981.0,0.372038]
[1744382592705,0.10703847,81982.0,81981.0,0.38427163]
[1744382592905,0.17837252,81991.0,81990.0,0.1220246]
[1744382593101,0.17837252,81991.0,81990.0,0.4828246]
[1744382593307,0.0609943,82015.0,82011.0,0.0609966]
[1744382593615,0.1219919,82012.0,82011.0,0.0609966]
[1744382594009,0.1219919,82012.0,82011.0,0.07003109]
[1744382594205,0.1220319,82012.0,82011.0,0.07003109]
[1744382594713,0.1220319,82012.0,82011.0,0.00903449]
[1744382594915,0.1219933,82011.0,82010.0,0.1219938]
[1744382595511,0.1219963,82009.0,82008.0,0.1829951]
[1744382595719,0.1829982,82008.0,82007.0,0.1219987]
[1744382595909,0.1219993,82007.0,82006.0,0.2606008]
[1744382596218,0.1219993,82007.0,82006.0,0.2386008]
[1744382596407,0.1219993,82007.0,82006.0,0.24778598]
[1744382597308,0.1221733,82007.0,82006.0,0.24778598]
[1744382597509,0.000174,82007.0,82006.0,0.24778598]
[1744382598114,0.1221733,82007.0,82006.0,0.13808518]
[1744382598316,0.1220038,82004.0,82003.0,0.00018298]
[1744382600315,0.2689,82006.0,82003.0,0.00018298]
[1744382600511,0.000174,82007.0,82006.0,0.1220008]
[1744382601317,0.000214,82007.0,82006.0,0.3879008]
[1744382601911,0.000174,82007.0,82006.0,0.3879008]
[1744382602111,0.256898,82008.0,82007.0,0.1219993]
[1744382602611,0.256898,82008.0,82007.0,0.3882993]
[1744382603011,0.1349,82008.0,82007.0,0.3882993]
[1744382603412,0.1219925,82012.0,82011.0,0.1219933]
[1744382603618,0.1219925,82012.0,82011.0,0.3882933]
[1744382603815,0.1219925,82012.0,82011.0,0.3662933]
[1744382604011,0.0609952,82013.0,82012.0,0.1219919]
[1744382604211,0.0609943,82015.0,82014.0,0.1219889]
[1744382604507,0.0610343,82015.0,82014.0,0.1219889]
[1744382604719,0.1220023,82005.0,81997.0,0.3608]
[1744382604922,0.1220023,82005.0,82004.0,0.1220028]
[1744382605219,0.1220038,82004.0,81997.0,0.3608]
[1744382605425,0.1220038,82004.0,82003.0,0.12218818]
[1744382605807,0.3608,82008.0,82007.0,0.1219993]
[1744382606212,0.4827978,82008.0,82007.0,0.3957993]
[1744382606621,0.4828378,82008.0,82007.0,0.3957993]
[1744382607023,0.4827978,82008.0,82007.0,0.3957993]
[1744382607319,0.3608,82008.0,82007.0,0.3957993]
[1744382607816,0.000174,82008.0,82007.0,0.3957993]
[1744382608116,0.000214,82008.0,82007.0,0.3957993]
[1744382611019,0.1186139,82016.0,82015.0,0.1219874]
[1744382611219,0.1219895,82015.0,82014.0,0.1219888]
[1744382611420,0.06104741,82016.0,82015.0,0.4076874]
[1744382611623,0.0609934,82016.0,82015.0,0.3856874]
[1744382611817,4e-05,82016.0,82015.0,0.3856874]
[1744382612030,0.00018298,82020.0,82019.0,0.1219814]
[1744382612318,0.00018298,82020.0,82019.0,0.2631814]
[1744382612723,0.00022298,82020.0,82019.0,0.2631814]
[1744382613314,0.12220298,82020.0,82019.0,0.2631814]
[1744382613524,0.40160298,82020.0,82019.0,0.2631814]
[1744382613713,0.27962298,82020.0,82019.0,0.2631814]
[1744382615225,0.27962298,82020.0,82019.0,0.4039814]
[1744382615427,0.27962298,82020.0,82019.0,0.2631814]
[1744382615623,0.1219889,82014.0,82011.0,0.0609966]
[1744382615821,0.0609907,82019.0,82014.0,0.1219882]
[1744382616021,0.27962298,82020.0,81996.0,0.1212]
[1744382616022,0.1220038,82004.0,81996.0,0.1212]
[1744382616220,0.1220038,82004.0,81997.0,0.1408]
[1744382616425,0.1220038,82004.0,81999.0,0.1220101]
[1744382616629,0.1220038,82004.0,81996.0,0.1212]
[1744382616818,0.4088038,82004.0,81996.0,0.1212]
[1744382617016,0.82728726,82004.0,81991.0,0.00038802]
[1744382617214,0.70528346,82004.0,81991.0,0.00038802]
[1744382617426,0.4088043,82004.0,82003.0,0.1220052]
[1744382619326,0.1220142,81997.0,81988.0,7.29e-05]
[1744382619526,0.0610071,81997.0,81996.0,0.1220157]
[1744382619731,0.0610071,81997.0,81991.0,0.00038802]
[1744382619732,0.1220157,81996.0,81991.0,0.00038802]
[1744382620227,0.3994157,81996.0,81991.0,0.00038802]
[1744382620830,0.3994157,81996.0,81995.0,0.00022298]
[1744382621826,0.3994157,81996.0,81995.0,0.12224008]
[1744382622342,0.69588346,81996.0,81991.0,0.00038802]
[1744382622527,0.1220261,81989.0,81988.0,5.4e-05]
[1744382622924,0.1220335,81984.0,81983.0,7.29e-05]
[1744382623130,0.1220693,81960.0,81954.0,0.36493007]
[1744382623324,0.1220693,81960.0,81959.0,0.30090513]
[1744382623826,0.1220693,81960.0,81959.0,0.42301583]
[1744382624026,0.00018298,81968.0,81962.0,0.0610327]
[1744382624232,0.26444188,81968.0,81967.0,0.1220588]
[1744382624532,0.40274188,81968.0,81967.0,0.1220588]
[1744382626739,0.1220603,81966.0,81965.0,0.0610301]
[1744382627331,0.00018298,81968.0,81967.0,0.1220588]
[1744382627530,0.12224028,81968.0,81967.0,0.1220588]
[1744382627729,0.00018298,81968.0,81967.0,0.1220588]
[1744382627940,0.12224028,81968.0,81967.0,0.1220588]
[1744382628131,0.00018298,81968.0,81967.0,0.1220588]
[1744382628527,0.12224028,81968.0,81967.0,0.1220588]
[1744382628732,0.00018298,81968.0,81967.0,0.1220588]
[1744382629530,0.00018298,81968.0,81967.0,0.3928588]
[1744382630039,0.12224028,81968.0,81967.0,0.2708]
[1744382630344,0.1220603,81966.0,81965.0,0.3608]
[1744382631025,0.4046603,81966.0,81965.0,0.3608]
[1744382631235,0.4046603,81966.0,81959.0,0.14404477]
[1744382631236,0.0610321,81964.0,81959.0,0.00924477]
[1744382631545,0.1220693,81960.0,81959.0,0.1220707]
[1744382632033,0.4046693,81960.0,81959.0,0.1221107]
[1744382632340,0.4046693,81960.0,81959.0,0.13117003]
[1744382632739,0.4046693,81960.0,81959.0,0.00909933]
[1744382632943,0.4046693,81960.0,81959.0,0.1221107]